fUSD/lending_fUSD_20250422
["ID","MTS","AMOUNT","RATE_DAILY","PERIOD"]
[358598889,1745298674574,-1105.87,0.00056986,120]
[358598890,1745298674583,-151.0,0.00056986,120]
[358598891,1745298674593,-500.0,0.00056986,120]
[358598892,1745298674602,-500.0,0.00056986,120]
[358598893,1745298674612,-500.0,0.00056986,120]
[358598894,1745298674622,-500.0,0.00056986,2]
[358598895,1745298674631,-500.0,0.00056986,120]
[358598896,1745298674641,-500.0,0.00056986,120]
[358598897,1745298674649,-500.0,0.00056986,120]
[358598898,1745298674659,-505.74,0.00056986,120]
[358598899,1745298674669,-500.0,0.00056986,120]
[358598900,1745298674679,-500.0,0.00056986,120]
[358598901,1745298674688,-500.0,0.00056986,120]
[358598902,1745298674697,-500.0,0.00056986,120]
[358598903,1745298674707,-500.0,0.00056986,120]
[358598904,1745298674716,-500.0,0.00056986,120]
[358598905,1745298674725,-500.0,0.00056986,120]
[358598906,1745298674735,-500.0,0.00056986,120]
[358598907,1745298674745,-500.0,0.00056986,120]
[358598908,1745298674755,-500.0,0.00056986,120]
[358598909,1745298674765,-1000.0,0.00056986,120]
[358598910,1745298674774,-500.0,0.00056986,120]
[358598911,1745298674783,-500.0,0.00056986,120]
[358598912,1745298674793,-500.0,0.00056986,120]
[358598913,1745298674803,-500.0,0.00056986,120]
[358598914,1745298674813,-1000.0,0.00056986,35]
[358598915,1745298674823,-500.0,0.00056986,120]
[358598916,1745298674833,-500.0,0.00056986,120]
[358598917,1745298674842,-151.0,0.00056986,120]
[358598918,1745298674851,-500.0,0.00056986,120]
[358598919,1745298674861,-542.2512973,0.00056986,120]
[358598920,1745298674871,-185.84206417,0.00056986,120]
[358598921,1745298674880,-500.0,0.00056986,120]
[358598922,1745298674890,-500.0,0.00056986,120]
[358598923,1745298674899,-500.0,0.00056986,120]
[358598924,1745298674909,-500.0,0.00056986,120]
[358598925,1745298674919,-500.0,0.00056986,120]
[358598926,1745298674928,-500.0,0.00056986,120]
[358598927,1745298674938,-500.0,0.00056986,120]
[358598928,1745298674947,-1331.73,0.00056986,120]
[358598929,1745298674957,-608.02,0.00056986,120]
[358598930,1745298674967,-89923.15,0.00056986,7]
[358598931,1745298674976,-7874.31,0.00056986,120]
[358598932,1745298674986,-500.0,0.00056986,120]
[358598933,1745298674996,-500.0,0.00056986,120]
[358598934,1745298675006,-500.0,0.00056986,118]
[358598935,1745298675016,-500.0,0.00056986,12]
[358598936,1745298675025,-500.55,0.00056986,120]
[358598937,1745298675034,-500.0,0.00056986,120]
[358598938,1745298675044,-500.0,0.00056986,120]
[358598939,1745298675055,-500.0,0.00056986,120]
[358598940,1745298675068,-500.0,0.00056986,120]
[358598941,1745298675078,-500.0,0.00056986,120]
[358598942,1745298675087,-151.0,0.00056986,120]
[358598943,1745298675098,-2542.58,0.00056986,120]
[358598944,1745298675108,-705.34,0.00056986,120]
[358598945,1745298675118,-585.71,0.00056986,120]
[358598946,1745298675128,-500.0,0.00056986,120]
[358598947,1745298675138,-500.0,0.00056986,120]
[358598948,1745298675148,-500.0,0.00056986,120]
[358598949,1745298675159,-500.0,0.00056986,120]
[358598950,1745298675168,-508.22,0.00056986,120]
[358598951,1745298675178,-500.0,0.00056986,120]
[358598952,1745298675189,-695.38,0.00056986,120]
[358598953,1745298675199,-500.0,0.00056986,120]
[358598954,1745298675209,-528.15,0.00056986,120]
[358598955,1745298675218,-500.0,0.00056986,120]
[358598956,1745298675228,-539.98586998,0.00056986,120]
[358598957,1745298675237,-500.0,0.00056986,120]
[358598958,1745298675247,-809.17,0.00056986,120]
[358598959,1745298675256,-500.0,0.00056986,120]
[358598960,1745298675265,-756.42,0.00056986,120]
[358598961,1745298675274,-500.0,0.00056986,120]
[358598962,1745298675284,-500.0,0.00056986,120]
[358598963,1745298675294,-819.39,0.00056986,120]
[358598964,1745298675304,-500.0,0.00056986,120]
[358598965,1745298675313,-500.0,0.00056986,120]
[358598966,1745298675322,-500.0,0.00056986,120]
[358598967,1745298675332,-631.22599022,0.00056986,120]
[358598968,1745298675342,-500.0,0.00056986,120]
[358598969,1745298675351,-500.0,0.00056986,120]
[358598970,1745298675361,-500.0,0.00056986,120]
[358598971,1745298675371,-501.39,0.00056986,120]
[358598972,1745298675380,-505.46,0.00056986,120]
[358598973,1745298675390,-279.71178639,0.00056986,120]
[358598974,1745298675399,-500.0,0.00056986,120]
[358598975,1745298675409,-500.0,0.00056986,120]
[358598976,1745298675419,-1243.56,0.00056986,120]
[358598977,1745298675428,-622.16154333,0.00056986,120]
[358598978,1745298675438,-582.2,0.00056986,120]
[358598979,1745298675447,-500.0,0.00056986,120]
[358598980,1745298675457,-500.0,0.00056986,120]
[358598981,1745298675466,-206.58214131,0.00056986,120]
[358598982,1745298675475,-500.0,0.00056986,120]
[358598983,1745298675485,-500.0,0.00056986,120]
[358598984,1745298675495,-558.46,0.00056986,120]
[358598985,1745298675504,-757.59,0.00056986,120]
[358598986,1745298675513,-500.0,0.00056986,120]
[358598987,1745298675523,-500.0,0.00056986,120]
[358598988,1745298675532,-496.99013113,0.00056986,120]
[358598989,1745298675542,-21.98459733,0.00056986,120]
[358598990,1745298675760,-253.88923684,0.00056986,120]
[358598991,1745298714807,500.0,0.00047786,120]
[358598992,1745298748573,500.0,0.00047786,120]
[358598993,1745298748833,500.0,0.00047786,120]
[358598994,1745298749079,500.0,0.00047786,120]
[358598995,1745298749312,500.0,0.00047786,120]
[358598996,1745298749549,500.0,0.00047786,120]
[358598997,1745298749783,500.0,0.00047786,120]
[358598998,1745298750041,500.0,0.00047786,120]
[358598999,1745298750283,532.17637582,0.00047786,120]
[358599000,1745298767658,500.0,0.00047786,120]
[358599001,1745298791283,500.0,0.00047784,120]
[358599002,1745298791505,500.0,0.00047784,120]
[358599003,1745298791731,500.0,0.00047784,120]
[358599004,1745298791977,500.0,0.00047784,120]
[358599005,1745298792222,500.0,0.00047784,120]
[358599006,1745298792448,500.0,0.00047784,120]
[358599007,1745298792696,500.0,0.00047784,120]
[358599008,1745298792944,500.0,0.00047784,120]
[358599009,1745298793218,595.6477018,0.00047784,120]
[358599010,1745298819303,500.0,0.00047784,120]
[358599011,1745298867553,500.0,0.00047784,120]
[358599012,1745299052097,500.0,0.00047784,120]
[358599013,1745299067493,500.0,0.00047784,120]
[358599014,1745299098121,-250.0,0.00020933,2]
[358599015,1745299098153,-250.0,0.00021,2]
[358599016,1745299098185,-250.0,0.00021942,2]
[358599017,1745299098222,-150.0,0.00022953,2]
[358599018,1745299098254,-250.0,0.00022953,2]
[358599019,1745299098289,-300.0,0.00023,2]
[358599020,1745299098321,-350.0,0.00025,2]
[358599021,1745299098352,-150.85312032,0.000269,2]
[358599022,1745299098383,-400.0,0.00027,2]
[358599023,1745299098415,-450.0,0.00029,2]
[358599024,1745299098447,-500.0,0.00031,2]
[358599025,1745299098478,-550.0,0.00033,2]
[358599026,1745299098509,-600.0,0.00035,2]
[358599027,1745299098540,-650.0,0.00037,2]
[358599028,1745299098571,-175.3492281,0.000388,2]
[358599029,1745299098602,-304.02269959,0.000389,14]
[358599030,1745299098633,-700.0,0.00039,2]
[358599031,1745299098670,-304.02269937,0.00039797,15]
[358599032,1745299098702,-304.02269937,0.00040693,16]
[358599033,1745299098732,-150.85312032,0.00040747,2]
[358599034,1745299098764,-750.0,0.00041,2]
[358599035,1745299098798,-304.02269937,0.0004159,16]
[358599036,1745299098831,-304.02269937,0.00042486,17]
[358599037,1745299098864,-800.0,0.00043,2]
[358599038,1745299098896,-478.66206838,0.00043,4]
[358599039,1745299098910,-250.0,0.00043,4]
[358599040,1745299098931,-250.0,0.00043,4]
[358599041,1745299098943,-148.33793162,0.00043,4]
[358599042,1745299098953,-101.66206838,0.00043146,2]
[358599043,1745299098964,-150.0,0.00043146,2]
[358599044,1745299098976,-114.64027795,0.00043146,2]
[358599045,1745299098986,-135.35972205,0.00043383,17]
[358599046,1745299098998,-168.66297732,0.00043383,17]
[358599047,1745299099008,-131.33702268,0.00044279,18]
[358599048,1745299099020,-172.68567669,0.00044279,18]
[358599049,1745299099030,-177.31432331,0.00045,2]
[358599050,1745299099043,-150.85312032,0.00045,2]
[358599051,1745299099054,-400.0,0.00045,2]
[358599052,1745299099075,-121.83255637,0.00045,2]
[358599053,1745299099084,-304.02269937,0.00045176,19]
[358599054,1745299099094,-24.14474426,0.00045589,2]
[358599055,1745299099105,-475.85525574,0.00045589,2]
[358599056,1745299099115,-24.14474426,0.00045729,2]
[358599057,1745299099127,-550.0,0.00045729,2]
[358599058,1745299099139,-196.31525574,0.00045729,2]
[358599059,1745299099148,-304.02269937,0.00046072,19]
[358599060,1745299099158,-99.66204489,0.00046575,2]
[358599061,1745299099170,-650.0,0.00046575,2]
[358599062,1745299099182,-175.3492281,0.00046575,2]
[358599063,1745299099194,-304.02269959,0.00046575,2]
[358599064,1745299099210,-700.0,0.00046575,2]
[358599065,1745299099230,-70.96602742,0.00046575,2]
[358599066,1745299099240,-233.05667195,0.00046575,2]
[358599067,1745299099257,-304.02269937,0.00046575,2]
[358599068,1745299099268,-150.85312032,0.00046575,2]
[358599069,1745299099280,-333.98465859,0.00046575,2]
[358599070,1745299099290,-304.02269937,0.00046969,20]
[358599071,1745299099300,-111.99264204,0.0004759,2]
[358599072,1745299099312,-280.66735796,0.0004759,2]
[358599073,1745299099322,-23.35534141,0.00047663,2]
[358599074,1745299099334,-246.16465859,0.00047663,2]
[358599075,1745299099344,-57.85804078,0.000477,2]
[358599076,1745299099355,-800.0,0.000477,2]
[358599077,1745299099367,-73.84195922,0.000477,2]
[358599078,1745299099377,-1053.15804078,0.000477,2]
[358599079,1745299106628,500.0,0.00047739,120]
[358599080,1745299110007,913.825,0.00043,66]
[358599081,1745299110157,169.46252897,0.00043,66]
[358599082,1745299126954,500.0,0.00047739,120]
[358599083,1745299148572,500.0,0.00047739,120]
[358599084,1745299182584,500.0,0.00047739,120]
[358599085,1745299209521,500.0,0.00047739,120]
[358599086,1745299237630,500.0,0.00047739,120]
[358599087,1745299254488,500.0,0.00047739,120]
[358599088,1745299273947,500.0,0.00047739,120]
[358599089,1745299299706,500.0,0.00047739,120]
[358599116,1745299319144,500.0,0.00047739,120]
[358599240,1745299340004,500.0,0.00047739,120]
[358599826,1745299361354,500.0,0.00047739,120]
[358599827,1745299378857,500.0,0.00047739,120]
[358599828,1745299416520,500.0,0.00047739,120]
[358599829,1745299437712,500.0,0.00047739,120]
[358599830,1745299465486,563.56732408,0.00047739,120]
[358599831,1745299525912,3049.72898701,0.00047739,120]
[358599832,1745299533020,222.85,0.00041837,120]
[358599833,1745299577714,5000.0,0.00043836,30]
[358599834,1745299615469,5000.0,0.00043836,30]
[358599836,1745299694419,262.89068651,0.0002,14]
[358599850,1745299831707,-150.85312032,0.000198,2]
[358599851,1745299831716,-1008.32577251,0.000199,2]
[358599852,1745299831726,-1306.30702728,0.000199,2]
[358599853,1745299831737,-150.65635032,0.000199,2]
[358599854,1745299831746,-2500.0,0.000199,2]
[358599855,1745299831755,-208.91946992,0.000199,2]
[358599856,1745299831765,-500.0,0.00019973,2]
[358599857,1745299831775,-457.88,0.0001999,2]
[358599858,1745299831784,-457.88,0.0001999,2]
[358599859,1745299831793,-457.88,0.0001999,2]
[358599860,1745299831803,-457.88,0.0001999,2]
[358599861,1745299831816,-457.88,0.0001999,2]
[358599862,1745299831825,-457.88,0.0001999,2]
[358599863,1745299831834,-457.88,0.0001999,2]
[358599864,1745299831843,-457.88,0.0001999,2]
[358599865,1745299831852,-457.88,0.0001999,2]
[358599866,1745299831861,-457.88,0.0001999,2]
[358599867,1745299831870,-421.6,0.0001999,2]
[358599868,1745299831879,-332.35062307,0.0001999,2]
[358599869,1745299831893,-89.24937693,0.0001999,2]
[358599870,1745299831902,-268.52038461,0.0001999,2]
[358599871,1745299831912,-268.52038461,0.0001999,2]
[358599872,1745299831921,-268.52038461,0.0001999,2]
[358599873,1745299831930,-500.0,0.00019999,2]
[358599874,1745299831939,-250.0,0.00019999,2]
[358599875,1745299831948,-357.25013583,0.00019999,2]
[358599876,1745299831957,-221.71995721,0.0002,2]
[358599877,1745299831966,-2228437.08246821,0.0002,2]
[358599878,1745299837547,-115866.19561184,0.0002,2]
[358599879,1745299837766,-1390745.40803577,0.0002,2]
[358599880,1745299837777,-2955771.08740354,0.0002,2]
[358600052,1745299839794,-250.0,0.0002,2]
[358600490,1745299844149,-498.23956915,0.0002,2]
[358600622,1745299845727,-22848.52868788,0.0002,2]
[358600880,1745299889188,500.0,0.0002,30]
[358600881,1745299901448,500.0,0.0002,30]
[358600882,1745299928268,500.0,0.000192,7]
[358600883,1745299930361,1000.0,0.000193,7]
[358600884,1745299932470,1500.0,0.000194,7]
[358600885,1745299934240,162.63,0.00032904,30]
[358600886,1745299934579,2100.0,0.000195,7]
[358600887,1745300259524,562.25808543,0.00043836,120]
[358600888,1745300310111,790.52,0.00042425,64]
[358600890,1745300406891,10000.0,0.000438,30]
[358600891,1745300487135,10000.0,0.000438,30]
[358600892,1745300490935,150.0,0.00041095,120]
[358600893,1745300491185,150.0,0.00042465,120]
[358600894,1745300491416,150.0,0.00043835,120]
[358600895,1745300505345,10000.0,0.000438,30]
[358600897,1745300633839,-2600.0,0.000196,7]
[358600898,1745300633861,-250.0,0.0001965,2]
[358600899,1745300633884,-500.0,0.000197,7]
[358600900,1745300633906,-500.0,0.000198,7]
[358600901,1745300633929,-850.0,0.00019862,2]
[358600902,1745300633950,-4021.0,0.00019863,2]
[358600903,1745300633973,-279.0,0.00019899,2]
[358600910,1745301031658,-300.0,0.00019898,2]
[358600911,1745301031669,-15125.76596952,0.00019899,2]
[358600912,1745301031678,-630.4993,0.000199,2]
[358600913,1745301031687,-500.0,0.000199,2]
[358600914,1745301031697,-6452.6812,0.000199,2]
[358600915,1745301031706,-1192.23568994,0.000199,2]
[358600916,1745301031932,-450.89204362,0.000199,2]
[358600978,1745301037717,-11330.51826644,0.000199,2]
[358600979,1745301037727,-790.519,0.000199,2]
[358600980,1745301037736,-205.44953294,0.000199,2]
[358600981,1745301037746,-681.6319,0.000199,2]
[358600982,1745301037755,-4962.6031,0.000199,2]
[358600983,1745301037764,-13208.1542,0.000199,2]
[358600984,1745301037774,-1000.0,0.000199,2]
[358600985,1745301037784,-1837.3798,0.000199,2]
[358600986,1745301037794,-1924.6201,0.000199,2]
[358600987,1745301037805,-3040.5041,0.000199,2]
[358600988,1745301037814,-64.46627898,0.000199,2]
[358600989,1745301037825,-148.51072102,0.000199,2]
[358600990,1745301037835,-217.03998966,0.000199,2]
[358600991,1745301037845,-664.5333,0.000199,2]
[358600992,1745301037854,-5087.34293387,0.000199,2]
[358600993,1745301037888,-20316.27586613,0.000199,2]
[358600994,1745301037897,-3798.5499046,0.000199,2]
[358600995,1745301037906,-522.5717,0.000199,2]
[358600996,1745301037916,-2688.8532,0.000199,2]
[358600997,1745301037925,-2500.0,0.000199,2]
[358600998,1745301037934,-8735.5234,0.000199,2]
[358600999,1745301037943,-1661.57406133,0.000199,2]
[358601000,1745301037952,-2439.48566585,0.000199,2]
[358601001,1745301037961,-169.66159446,0.000199,2]
[358601002,1745301037970,-194.15871915,0.000199,2]
[358601003,1745301037980,-150.65635032,0.000199,2]
[358601004,1745301037989,-1680.5429542,0.000199,2]
[358601005,1745301037999,-500.0,0.000199,2]
[358601006,1745301038008,-653.96,0.00019973,2]
[358601007,1745301038017,-999.99,0.00019973,2]
[358601008,1745301038026,-150.99,0.00019973,2]
[358601009,1745301038036,-165.66830612,0.00019973,2]
[358601010,1745301038045,-182.00192098,0.00019973,2]
[358601011,1745301038054,-171.6758,0.00019973,2]
[358601012,1745301038063,-163.54,0.0001999,2]
[358601013,1745301038073,-163.54,0.0001999,2]
[358601014,1745301038082,-163.54,0.0001999,2]
[358601015,1745301038091,-163.54,0.0001999,2]
[358601016,1745301038100,-163.54,0.0001999,2]
[358601017,1745301038109,-268.52038461,0.0001999,2]
[358601019,1745301038118,-268.52038461,0.0001999,2]
[358601021,1745301038127,-268.52038461,0.0001999,2]
[358601022,1745301038136,-163.54,0.0001999,2]
[358601023,1745301038146,-163.54,0.0001999,2]
[358601024,1745301038155,-312.94997787,0.00019999,2]
[358601025,1745301038165,-300.0,0.00019999,2]
[358601027,1745301038174,-432.76976354,0.00019999,2]
[358601029,1745301038183,-500.0,0.00019999,2]
[358601031,1745301038192,-250.07509508,0.00019999,2]
[358601033,1745301038202,-221.71995721,0.0002,2]
[358601035,1745301038211,-1455123.29298611,0.0002,2]
[358601037,1745301038223,-2979770.19535992,0.0002,2]
[358601192,1745301039831,-694.47352487,0.0002,2]
[358601227,1745301040164,-403.06029,0.0002,2]
[358601230,1745301040175,-270.95745567,0.0002,2]
[358601241,1745301040278,-234941.805,0.0002,2]
[358601796,1745301045927,-476.0011936,0.0002,2]
[358602040,1745301057346,151.329868,0.000199,20]
[358602041,1745301090627,150.0,0.00043836,30]
[358602042,1745301110332,162.63,0.00032904,30]
[358602043,1745301228162,150.0,0.00043836,30]
[358602044,1745301392724,501.23237501,0.00043836,120]
[358602045,1745301415453,90000.0,0.00043835,30]
[358602046,1745301447321,150.0,0.00041095,120]
[358602047,1745301447555,243.36224688,0.00042465,120]
[358602048,1745301510055,682.899,0.00039181,54]
[358602049,1745301527533,500.0,0.00043836,120]
[358602050,1745301612174,8000.0,0.00043836,30]
[358602051,1745302073233,-183.73766509,0.00019164,2]
[358602052,1745302143713,158.38549461,0.00042017,30]
[358602053,1745302149098,166.04617294,0.00042017,30]
[358602054,1745302149878,164.80746326,0.00042017,30]
[358602055,1745302157859,15020.76340161,0.000211,10]
[358602058,1745302231862,-66.26233491,0.00019164,2]
[358602059,1745302231871,-250.0,0.00019477,2]
[358602060,1745302231881,-172.49517495,0.0001979,2]
[358602061,1745302231890,-194.88734647,0.0001979,2]
[358602062,1745302231899,-585.67388021,0.0001988,2]
[358602063,1745302231909,-538.0,0.00019889,2]
[358602064,1745302231918,-6754.93312908,0.0001989,2]
[358602065,1745302231928,-500.0,0.000199,2]
[358602066,1745302231937,-158.71213182,0.000199,2]
[358602067,1745302231946,-14170.2881,0.000199,2]
[358602068,1745302231955,-2688.8532,0.000199,2]
[358602069,1745302231965,-4991.7932,0.000199,2]
[358602070,1745302231975,-194.38914111,0.000199,2]
[358602071,1745302231987,-8735.5234,0.000199,2]
[358602072,1745302231997,-522.5717,0.000199,2]
[358602073,1745302232007,-20316.2759,0.000199,2]
[358602074,1745302232017,-186.4265866,0.000199,2]
[358602075,1745302232027,-3798.5499046,0.000199,2]
[358602076,1745302232036,-2311.63561035,0.000199,2]
[358602077,1745302232045,-11847.22109172,0.000199,2]
[358602078,1745302232055,-150.65635032,0.000199,2]
[358602079,1745302232064,-202.83355767,0.000199,2]
[358602080,1745302232074,-2439.48566585,0.000199,2]
[358602081,1745302232083,-169.66159446,0.000199,2]
[358602083,1745302232092,-2500.0,0.000199,2]
[358602085,1745302232102,-2351.65577441,0.000199,2]
[358602086,1745302232111,-2351.65577442,0.000199,2]
[358602087,1745302232120,-154.31208084,0.00019973,2]
[358602088,1745302232131,-165.66830612,0.00019973,2]
[358602089,1745302232140,-182.00192098,0.00019973,2]
[358602091,1745302232149,-268.52038461,0.0001999,2]
[358602093,1745302232158,-268.52038461,0.0001999,2]
[358602095,1745302232167,-268.52038461,0.0001999,2]
[358602097,1745302232177,-163.54,0.0001999,2]
[358602099,1745302232186,-163.54,0.0001999,2]
[358602101,1745302232195,-163.54,0.0001999,2]
[358602103,1745302232205,-163.54,0.0001999,2]
[358602105,1745302232213,-163.54,0.0001999,2]
[358602107,1745302232223,-163.54,0.0001999,2]
[358602109,1745302232234,-163.54,0.0001999,2]
[358602111,1745302232244,-300.0,0.00019999,2]
[358602113,1745302232253,-300.0,0.00019999,2]
[358602115,1745302232262,-500.0,0.00019999,2]
[358602117,1745302232271,-392.33928842,0.00019999,2]
[358602119,1745302232281,-500.0,0.00019999,2]
[358602121,1745302232290,-653.96,0.00019999,2]
[358602123,1745302232304,-525.98129179,0.00019999,2]
[358602125,1745302232316,-150.99,0.00019999,2]
[358602128,1745302232328,-999.99,0.0002,2]
[358602130,1745302232342,-213.31021645,0.0002,2]
[358602132,1745302232354,-82170.89744167,0.0002,2]
[358602135,1745302232374,-158289.99999964,0.0002,2]
[358602137,1745302232386,-272.80967872,0.0002,2]
[358602140,1745302232399,-651.99321888,0.0002,2]
[358602142,1745302232413,-9533.11733368,0.0002,2]
[358602145,1745302232427,-1085.9649538,0.0002,2]
[358602148,1745302232445,-636.10140926,0.0002,2]
[358602150,1745302232459,-14029.7995919,0.0002,2]
[358602153,1745302232473,-4417.31673857,0.0002,2]
[358602185,1745302237873,-3586.85908103,0.0002,2]
[358602186,1745302237931,-6438.40002168,0.0002,2]
[358602187,1745302237991,-1421.91293233,0.0002,2]
[358602188,1745302238048,-1506773.28837678,0.0002,2]
[358602189,1745302238062,-2979770.19535992,0.0002,2]
[358602190,1745302238161,-533.69583096,0.0002,2]
[358602192,1745302238175,-2446.28870213,0.0002,2]
[358602195,1745302238189,-47982.29158587,0.0002,2]
[358602197,1745302238200,-4709.90879101,0.0002,4]
[358602376,1745302240040,-17362.67309751,0.0002,4]
[358602378,1745302240050,-3858.89361312,0.0002,2]
[358602389,1745302240155,-5022760.15368436,0.0002,2]
[358603659,1745302352050,500.0,0.00043834,31]
[358603660,1745302352212,619.72214505,0.00043834,31]
[358603661,1745302352659,500.0,0.00043834,31]
[358603662,1745302465015,162.63,0.00032904,30]
[358603664,1745302583231,10000.0,0.00043835,30]
[358603666,1745302710103,546.319,0.00039218,54]
[358603668,1745303276436,59729.84790091,0.000419,30]
[358603669,1745303322585,99804.096,0.00043,30]
[358603683,1745303431958,-350.0,0.00019899,2]
[358603684,1745303431968,-856.6,0.000199,2]
[358603685,1745303432183,-3016.3561,0.000199,2]
[358603686,1745303432193,-2500.0,0.000199,2]
[358603687,1745303432202,-342.23977013,0.00019901,2]
[358603688,1745303432211,-1974.46477292,0.00019901,2]
[358603689,1745303432221,-2947.61908417,0.00019901,2]
[358603690,1745303432230,-3450.55134558,0.00019901,2]
[358603691,1745303432239,-204.12031234,0.00019973,2]
[358603692,1745303432248,-204.12031234,0.00019973,2]
[358603693,1745303432258,-432.76976354,0.00019999,2]
[358603694,1745303432267,-151.0,0.00019999,2]
[358603696,1745303432276,-366.99322143,0.00019999,2]
[358603698,1745303432285,-151.0,0.00019999,2]
[358603700,1745303432294,-368.18690425,0.00019999,2]
[358603701,1745303432303,-213.31021645,0.0002,2]
[358603702,1745303432312,-5014.51344236,0.0002,2]
[358603711,1745303438168,-359.34752932,0.00019999,2]
[358603712,1745303438178,-359.34752932,0.00019999,2]
[358603713,1745303438188,-76422.0982334,0.0002,2]
[358603714,1745303438197,-496.0,0.0002,2]
[358603715,1745303438206,-186.90791602,0.0002,2]
[358603716,1745303438216,-36492.33959662,0.0002,2]
[358603717,1745303438225,-2865454.15455524,0.0002,2]
[358603718,1745303438315,-444.42915463,0.0002,2]
[358603777,1745303440438,-19359.43691224,0.0002,2]
[358603778,1745303440452,-5927.21877198,0.0002,2]
[358603816,1745303445942,-258.32500331,0.0002,2]
[358603822,1745303446024,-42832.32482608,0.0002,2]
[358603827,1745303446171,-13682.82318415,0.0002,2]
[358603828,1745303446252,-968.0,0.0002,2]
[358603837,1745303459494,1998.74006308,0.00043835,30]
[358603839,1745303566336,162.63,0.00032904,30]
[358603843,1745303752842,-3683.721906,0.000198,2]
[358603844,1745303764570,-3014.4883,0.000199,2]
[358603845,1745303764596,-316.4977,0.000199,2]
[358603846,1745303764622,-202.83355766,0.000199,2]
[358603847,1745303764653,-2500.0,0.000199,2]
[358603848,1745303777070,1316.3098486,0.000199,2]
[358603849,1745303804226,1965.07938944,0.000199,2]
[358603850,1745303824782,3076.54649718,0.000199,2]
[358603851,1745303854997,555.2329987,0.00019986,2]
[358603852,1745303863749,198.08887854,0.00019886,2]
[358603853,1745303907341,877.53989908,0.000199,2]
[358603854,1745303910153,472.16,0.000196,2]
[358603855,1745303910300,472.161,0.000422,63]
[358603856,1745303926276,253.68109432,0.00043835,30]
[358603857,1745303939422,1310.0529263,0.000199,2]
[358603858,1745303939456,2500.0,0.000199,2]
[358603860,1745304007611,1309.43,0.0001999,2]
[358603861,1745304007815,1309.43,0.0001999,2]
[358603862,1745304037587,585.02659938,0.000199,2]
[358603863,1745304043470,1908.9150165,0.00019986,2]
[358603864,1745304074608,873.36861752,0.000199,2]
[358603865,1745304124120,151.0,0.00043836,30]
[358603866,1745304124157,500.0,0.00043836,30]
[358603867,1745304124733,151.0,0.00043836,30]
[358603868,1745304124767,518.5,0.00043836,30]
[358603869,1745304125408,151.0,0.00043836,30]
[358603870,1745304125480,537.6845,0.00043836,30]
[358603871,1745304125864,200.0,0.00043836,30]
[358603872,1745304125994,151.0,0.00043836,30]
[358603873,1745304126048,557.5788265,0.00043836,30]
[358603874,1745304126082,151.0,0.00043836,30]
[358603875,1745304126630,151.0,0.00043836,30]
[358603876,1745304126782,578.20924308,0.00043836,30]
[358603877,1745304127016,207.4,0.00043836,30]
[358603878,1745304127270,197.10935552,0.00043836,30]
[358603879,1745304127300,151.0,0.00043836,30]
[358603880,1745304127454,599.60298507,0.00043836,30]
[358603881,1745304127802,215.0738,0.00043836,30]
[358603882,1745304127938,151.0,0.00043836,30]